bitfinex/quotes_ETHUSD_20251111
["timestamp","ask_amount","ask_price","bid_price","bid_amount"]
[1762838672572,0.8083,3560.3,3560.2,0.002]
[1762838672926,1.2706,3560.3,3560.2,0.002]
[1762838673125,4.46534883,3560.3,3560.2,0.002]
[1762838673470,4.07935207,3560.3,3560.2,0.002]
[1762838673671,4.46534883,3560.3,3560.2,0.002]
[1762838673883,4.07935207,3560.3,3560.2,0.002]
[1762838674123,4.74135207,3560.3,3560.2,0.002]
[1762838675361,3.47853971,3560.3,3560.2,0.002]
[1762838675659,6.00106407,3560.3,3560.2,0.002]
[1762838675951,1.9326,3560.3,3560.2,0.002]
[1762838676248,1.4703,3560.3,3560.2,0.002]
[1762838676466,6.00106407,3560.3,3560.2,0.002]
[1762838677966,2.730012,3560.3,3560.2,0.002]
[1762838678436,1.162,3560.3,3560.2,0.002]
[1762838678640,3.97075207,3560.3,3560.2,0.002]
[1762838678838,1.4719,3560.3,3560.2,0.002]
[1762838679038,1.162,3560.3,3560.2,0.897604]
[1762838680025,0.5,3560.3,3560.2,1.369604]
[1762838680229,0.5,3560.3,3560.2,4.17843496]
[1762838680431,0.5,3560.3,3560.2,1.369604]
[1762838680611,0.5,3560.3,3560.2,4.17843496]
[1762838682162,0.663,3561.2,3560.6,3.21396605]
[1762838682163,0.5,3560.7,3560.6,3.21396605]
[1762838682572,0.5,3560.7,3560.6,4.17606605]
[1762838682983,0.5,3561.0,3560.9,0.405504]
[1762838683365,0.5,3561.0,3560.9,3.7038828]
[1762838683736,0.5,3561.0,3560.9,4.1758828]
[1762838684157,0.5,3561.0,3560.9,0.895604]
[1762838684358,0.5,3561.0,3560.9,1.367604]
[1762838684560,0.5,3561.0,3560.9,0.895604]
[1762838684864,0.5,3560.7,3560.6,0.405504]
[1762838685227,0.5,3560.7,3560.6,4.17611941]
[1762838686262,0.5,3560.7,3560.6,1.367604]
[1762838686437,0.5,3560.7,3560.6,4.17611941]
[1762838687066,0.001,3561.2,3560.6,1.367604]
[1762838687368,0.5,3561.0,3560.9,3.2137828]
[1762838687573,0.5,3561.0,3560.9,3.8757828]
[1762838687755,0.001,3561.2,3560.9,0.895604]
[1762838687954,0.5,3561.0,3560.9,3.7038828]
[1762838688368,0.5,3561.0,3560.9,4.1758828]
[1762838688661,0.5,3561.0,3560.9,1.367604]
[1762838688864,0.5,3561.0,3560.9,0.405504]
[1762838689992,0.001,3561.2,3560.9,1.367604]
[1762838690197,0.5,3561.0,3560.9,3.6857828]
[1762838690372,0.5,3561.0,3560.9,3.2137828]
[1762838690571,0.5,3561.0,3560.9,3.7038828]
[1762838690768,0.001,3561.2,3561.1,2.80812108]
[1762838690968,0.001,3561.2,3561.1,6.28473708]
[1762838691172,0.501,3561.2,3561.1,6.28473708]
[1762838691374,0.001,3561.2,3561.1,6.28473708]
[1762838692207,0.001,3561.2,3561.1,5.15073708]
[1762838692491,0.501,3561.2,3561.1,5.15073708]
[1762838692691,0.501,3561.2,3561.1,0.405504]
[1762838692901,0.7735,3561.2,3560.4,0.662]
[1762838693109,0.5,3560.5,3560.4,3.4706216]
[1762838693289,0.5,3560.5,3560.4,5.1358376]
[1762838693603,0.5,3561.0,3560.9,0.405504]
[1762838693760,0.001,3561.2,3560.8,0.405504]
[1762838693963,0.5,3560.9,3560.8,0.405504]
[1762838694362,0.5,3560.7,3560.4,1.259712]
[1762838694590,0.001,3561.2,3560.2,0.002]
[1762838694591,0.5,3560.4,3560.3,4.06846407]
[1762838694761,0.001,3561.2,3560.9,2.80821185]
[1762838694963,0.5,3561.1,3561.0,3.21367349]
[1762838695610,0.5,3561.1,3561.0,3.67397349]
[1762838696270,0.5,3561.1,3561.0,3.67400394]
[1762838696477,0.3131,3561.1,3560.3,0.4535]
[1762838696676,0.5,3560.7,3560.6,3.21397823]
[1762838697062,0.5,3560.7,3560.6,5.42599023]
[1762838697259,0.001,3561.2,3561.1,3.21362508]
[1762838697494,0.501,3561.2,3561.1,3.87912508]
[1762838698993,0.501,3561.2,3561.1,5.61983708]
[1762838699200,0.001,3561.2,3561.1,5.61983708]
[1762838700569,0.501,3561.2,3561.1,5.13883708]
[1762838700769,0.501,3561.2,3561.1,5.13533708]
[1762838700997,0.5,3561.1,3561.0,0.662]
[1762838701400,0.5,3561.1,3561.0,3.87570394]
[1762838701602,0.5,3561.1,3561.0,4.82800394]
[1762838701806,0.5,3561.1,3561.0,6.08771594]
[1762838701972,0.001,3561.2,3561.1,1.665216]
[1762838702171,0.501,3561.2,3561.1,3.21362508]
[1762838702391,0.001,3561.2,3561.1,5.61983708]
[1762838702602,0.501,3561.2,3561.1,5.61983708]
[1762838702801,0.001,3561.2,3561.1,5.61983708]
[1762838705428,0.501,3561.2,3561.1,6.28183708]
[1762838705628,0.001,3561.2,3561.1,6.28183708]
[1762838705977,0.001,3561.2,3561.1,5.61983708]
[1762838706327,0.501,3561.2,3561.1,5.13883708]
[1762838706619,0.501,3561.2,3561.1,6.28183708]
[1762838707184,0.501,3561.2,3561.1,4.94463708]
[1762838707390,0.501,3561.2,3561.1,5.60663708]
[1762838707586,0.501,3561.2,3561.1,4.47333708]
[1762838707814,0.501,3561.2,3561.1,5.13533708]
[1762838708473,0.501,3561.2,3561.1,4.47333708]
[1762838708882,0.5,3561.0,3560.9,2.81022704]
[1762838709134,0.5048,3561.0,3560.9,2.81022704]
[1762838709276,0.5048,3561.0,3560.9,0.002]
[1762838709478,0.988,3561.0,3560.9,0.002]
[1762838709787,0.988,3561.0,3560.9,3.2157828]
[1762838710000,0.5,3561.0,3560.9,3.2157828]
[1762838710314,0.5,3561.0,3560.9,2.8102788]
[1762838710514,0.5,3561.0,3560.9,0.002]
[1762838710710,0.5,3561.0,3560.9,2.8102788]
[1762838711028,0.5,3561.0,3560.9,3.2157828]
[1762838712732,0.5,3561.0,3560.9,3.6870828]
[1762838713398,0.5,3561.0,3560.9,0.407504]
[1762838713595,1.2671,3561.0,3560.9,0.002]
[1762838713799,0.7859,3561.0,3560.9,0.002]
[1762838714343,1.2671,3561.0,3560.9,0.002]
[1762838714936,0.7859,3561.0,3560.9,0.002]
[1762838717112,0.7859,3561.0,3560.9,2.8102788]
[1762838717513,0.7859,3561.0,3560.9,0.002]
[1762838717913,0.7859,3561.0,3560.9,2.8102788]
[1762838718148,0.7859,3561.0,3560.9,0.002]
[1762838718645,0.001,3561.2,3561.1,3.21362508]
[1762838718947,0.501,3561.2,3561.1,3.87912508]
[1762838719162,0.501,3561.2,3561.1,3.68492508]
[1762838719367,0.501,3561.2,3561.1,3.21362508]
[1762838719577,0.7869,3561.2,3561.1,0.405504]
[1762838720074,0.7869,3561.2,3561.1,3.21362508]
[1762838720458,0.501,3561.2,3561.1,3.21362508]
[1762838720657,0.501,3561.2,3561.1,4.36012508]
[1762838721042,0.501,3561.2,3561.1,3.21362508]
[1762838721256,0.501,3561.2,3561.1,0.405504]
[1762838721257,0.7869,3561.2,3561.1,0.405504]
[1762838721638,0.7869,3561.2,3560.9,0.002]
[1762838721874,0.9688,3561.0,3560.9,0.002]
[1762838722274,1.2689,3561.0,3560.9,0.002]
[1762838723241,4.07709994,3561.0,3560.9,0.002]
[1762838723844,5.33681194,3561.0,3560.9,0.002]
[1762838724176,5.71978969,3561.0,3560.9,0.002]
[1762838724339,8.87979487,3561.0,3560.9,0.002]
[1762838724939,5.33681194,3561.0,3560.9,0.002]
[1762838727559,5.83681194,3561.0,3560.9,0.002]
[1762838730001,5.33681194,3561.0,3560.9,0.002]
[1762838730192,5.83681194,3561.0,3560.9,0.002]
[1762838730770,6.49881194,3561.0,3560.9,0.002]
[1762838731209,5.99881194,3561.0,3560.9,0.002]
[1762838731585,6.49881194,3561.0,3560.9,0.002]
[1762838732111,5.99881194,3561.0,3560.9,0.002]
[1762838734353,5.69871194,3561.0,3560.9,0.002]
[1762838734532,5.99881194,3561.0,3560.9,0.002]
[1762838736629,5.69871194,3561.0,3560.9,0.002]
[1762838737145,3.97019994,3561.0,3560.9,0.002]
[1762838737350,4.73919994,3561.0,3560.9,0.002]
[1762838737710,4.43739994,3561.0,3560.9,0.002]
[1762838738483,4.73919994,3561.0,3560.9,0.002]
[1762838739824,4.43739994,3561.0,3560.9,0.002]
[1762838740460,3.97019994,3561.0,3560.9,0.002]
[1762838740689,0.5,3561.0,3560.9,0.9364]
[1762838740834,0.5,3561.0,3560.9,4.1501828]
[1762838741675,0.5,3561.0,3560.9,1.341904]
[1762838742030,0.5,3561.0,3560.9,4.1501828]
[1762838743180,0.501,3561.2,3561.1,3.21362508]
[1762838743339,0.501,3561.2,3561.1,3.89012508]
[1762838743549,0.501,3561.2,3561.1,4.34072508]
[1762838743876,0.501,3561.2,3561.1,1.532604]
[1762838744043,0.501,3561.2,3561.1,4.34072508]
[1762838744434,0.501,3561.2,3561.1,1.532604]
[1762838744660,0.501,3561.2,3561.1,4.34072508]
[1762838745266,0.501,3561.2,3561.1,0.6765]
[1762838745766,0.501,3561.2,3561.1,3.93522108]
[1762838746576,0.501,3561.2,3561.1,1.1271]
[1762838747251,0.501,3561.2,3561.1,0.4838]
[1762838747625,0.5,3561.0,3560.9,0.002]
[1762838748542,0.5,3561.0,3560.9,0.4858]
[1762838750073,0.9848,3561.0,3560.9,0.002]
[1762838750276,3.79299994,3561.0,3560.9,0.002]
[1762838750478,4.74529994,3561.0,3560.9,0.002]
[1762838750676,4.45499994,3561.0,3560.9,0.002]
[1762838751377,1.6468,3561.0,3560.9,0.002]
[1762838751957,1.162,3561.0,3560.9,0.002]
[1762838752159,2.8078932,3561.4,3560.9,0.002]
[1762838752160,0.001,3562.7,3562.2,0.4838]
[1762838752392,0.001,3562.7,3562.6,8.68993099]
[1762838752592,0.001,3562.7,3562.6,10.27950838]
[1762838753221,0.001,3562.7,3562.6,9.14053099]
[1762838753698,0.501,3562.7,3562.6,5.40655475]
[1762838754398,0.501,3562.7,3562.6,1.743512]
[1762838754713,0.501,3562.7,3562.6,4.55045075]
[1762838754995,0.501,3562.7,3562.6,5.40655475]
[1762838758081,0.501,3562.7,3562.6,4.55045075]
[1762838758498,0.501,3562.7,3562.6,5.02465075]
[1762838759385,0.501,3562.7,3562.2,2.80725352]
[1762838759386,0.4885,3562.7,3562.2,2.80725352]
[1762838759589,0.5,3562.3,3562.2,2.80725352]
[1762838760001,0.5,3562.3,3561.8,0.055]
[1762838760002,0.4875,3562.3,3561.8,0.055]
[1762838760313,0.5,3561.6,3561.2,0.055]
[1762838760514,0.662,3561.8,3560.9,0.002]
[1762838760812,0.9875,3561.0,3560.9,0.002]
[1762838761014,0.5,3561.0,3560.9,0.002]
[1762838761217,0.5,3561.0,3560.9,3.2859788]
[1762838761383,0.5,3561.0,3560.9,0.4777]
[1762838761710,0.5,3561.0,3560.9,3.2859788]
[1762838761912,0.5,3561.0,3560.9,0.002]
[1762838762116,0.9875,3561.0,3560.9,0.002]
[1762838762290,0.5,3561.0,3560.9,0.002]
[1762838762813,0.5,3561.0,3560.9,3.7601788]
[1762838762981,0.5,3561.0,3560.9,0.002]
[1762838763179,0.5,3561.0,3560.9,2.8102788]
[1762838763628,0.5,3561.0,3560.9,0.002]
[1762838763835,0.5,3561.0,3560.9,2.8102788]
[1762838763998,0.5,3561.0,3560.9,0.002]
[1762838765019,0.5,3561.0,3560.9,3.2859788]
[1762838765325,0.4514,3562.7,3561.3,0.405504]
[1762838765508,0.5,3561.4,3561.3,7.42314362]
[1762838765821,0.663,3562.4,3562.1,2.80727089]
[1762838766023,0.663,3562.4,3562.2,2.80717528]
[1762838766024,0.5,3562.3,3562.2,2.80717528]
[1762838766494,0.5,3562.3,3562.2,3.31094781]
[1762838766707,0.5,3562.3,3562.2,3.28287528]
[1762838766885,0.5,3561.9,3561.8,4.47271207]
[1762838767294,0.5,3561.9,3561.8,4.94841207]
[1762838767501,0.5,3561.9,3561.8,5.42261207]
[1762838768730,0.5,3561.9,3561.8,5.39829406]
[1762838770006,0.5,3561.9,3561.8,4.92409406]
[1762838770202,0.5,3561.9,3561.8,5.39829406]
[1762838771354,0.001,3562.7,3562.3,2.80710649]
[1762838771651,0.5,3562.4,3562.3,2.80710649]
[1762838772734,0.5,3562.4,3561.9,2.80745707]
[1762838772735,0.5,3562.0,3561.9,2.80745707]
[1762838773449,0.5,3562.0,3561.9,3.28315707]
[1762838773649,0.5,3562.0,3561.9,3.75735707]
[1762838774257,0.5,3562.0,3561.9,4.16286107]
[1762838776749,0.5,3562.0,3561.9,5.42257307]
[1762838778457,0.5,3562.0,3561.9,3.28315707]
[1762838779321,0.5,3562.0,3561.9,3.75735707]
[1762838779625,0.001,3562.5,3562.4,2.80709633]
[1762838779930,0.501,3562.5,3562.4,4.82450033]
[1762838780265,0.001,3562.5,3562.4,6.08421233]
[1762838782267,1e-08,3562.9,3562.8,3.68798518]
[1762838782461,0.001,3563.1,3563.0,4.47183963]
[1762838782664,0.001,3563.1,3563.0,4.94753963]
[1762838783024,0.501,3563.1,3563.0,5.60953963]
[1762838783227,0.001,3563.1,3563.0,6.08373963]
[1762838784380,0.001,3563.3,3563.2,4.47168209]
[1762838784529,0.01,3563.9,3563.4,3.21181258]
[1762838784728,0.01,3563.9,3563.4,6.08342458]
[1762838785332,1e-08,3563.9,3563.8,2.8059936]
[1762838785527,1e-08,3563.9,3563.8,7.68902977]
[1762838785726,1e-08,3563.9,3563.8,9.82598584]
[1762838787261,0.01,3564.9,3564.8,6.5391827]
[1762838787460,0.01,3564.9,3564.8,8.0656867]
[1762838787662,0.01,3564.9,3564.8,8.5654867]
[1762838788264,0.51,3564.9,3564.8,2.80520646]
[1762838788463,0.5,3564.5,3564.4,3.21102526]
[1762838788664,0.5,3564.5,3564.4,5.59273726]
[1762838788880,0.5,3564.5,3564.4,4.33302526]
[1762838789064,0.9904,3564.5,3564.4,3.46852126]
[1762838789265,0.5,3564.5,3564.4,3.26452126]
[1762838789440,0.01,3564.9,3564.8,2.80520646]
[1762838789441,0.51,3564.9,3564.8,2.80520646]
[1762838789641,1.171,3564.9,3564.4,0.663]
[1762838789880,0.5,3564.5,3564.4,3.46852031]
[1762838790181,0.51,3564.9,3564.8,2.80520646]
[1762838791479,1.0004,3564.9,3564.8,2.80520646]
[1762838791777,0.5,3564.7,3564.6,3.46736385]
[1762838791949,0.7046,3564.7,3564.6,3.46736385]
[1762838792149,0.7046,3564.7,3564.6,2.80536385]
[1762838792362,0.7046,3564.7,3564.1,2.80575741]
[1762838792363,0.5,3564.2,3564.1,2.80575741]
[1762838792575,0.5,3564.2,3564.1,3.46875741]
[1762838792751,0.9904,3564.2,3564.1,2.80575741]
[1762838792965,1.4727,3564.2,3564.1,2.80575741]
[1762838793471,0.9727,3564.2,3563.9,2.80586287]
[1762838793648,0.7046,3564.0,3563.9,2.80586287]
[1762838793849,0.7046,3564.0,3563.5,1.068504]
[1762838793850,0.5,3563.6,3563.5,1.068504]
[1762838794151,0.5,3563.6,3563.5,4.72894183]
[1762838794912,0.5,3563.6,3563.5,5.13444583]
[1762838795584,0.5,3563.6,3563.5,3.87473383]
[1762838796040,1.4727,3563.6,3563.5,2.80622983]
[1762838796333,0.9727,3563.6,3562.8,3.73397624]
[1762838796630,0.5,3562.9,3562.8,6.94626142]
[1762838796927,0.5,3562.9,3562.8,7.60926142]
[1762838797084,0.5,3562.9,3562.8,8.06826142]
[1762838798018,1.1787,3562.9,3562.8,2.80678118]
[1762838798598,0.5,3562.9,3562.8,2.80678118]
[1762838798795,0.1883,3563.9,3563.8,2.8059936]
[1762838798994,0.1993,3564.9,3563.9,2.80591486]
[1762838799221,0.13,3564.7,3564.6,2.80536385]
[1762838799515,0.9823,3564.8,3564.7,2.80528515]
[1762838799683,0.9823,3564.8,3564.2,0.405504]
[1762838799684,0.5,3564.8,3564.2,0.405504]
[1762838799883,0.5,3564.3,3564.2,3.21118269]
[1762838800379,0.5,3564.3,3564.2,2.80567869]
[1762838802494,0.1993,3564.9,3564.8,2.80520646]
[1762838802799,0.5,3564.4,3564.3,2.80559997]
[1762838803427,0.9904,3564.4,3564.3,2.80559997]
[1762838803782,0.5,3564.4,3564.3,3.26459997]
[1762838804420,0.511,3564.9,3564.8,2.80520646]
[1762838804584,0.511,3564.9,3564.8,3.46820646]
[1762838804919,0.011,3564.9,3564.8,4.33271046]
[1762838805283,0.011,3564.9,3564.8,6.09222246]
[1762838806081,0.001,3565.3,3565.2,3.21039573]
[1762838806287,0.001,3565.3,3565.2,9.12481984]
[1762838806496,0.001,3565.3,3565.2,9.62461984]
[1762838806898,0.5,3564.9,3564.5,0.664]
[1762838807105,0.501,3565.3,3565.2,3.38369173]
[1762838807304,0.501,3565.3,3565.2,4.04769173]
[1762838807919,0.501,3565.3,3565.2,3.46889173]
[1762838808793,0.501,3565.3,3565.2,3.92789173]
[1762838809224,0.001,3565.3,3565.2,4.36144464]
[1762838809391,0.501,3565.3,3565.2,3.87439573]
[1762838809808,0.9914,3565.3,3565.2,3.46889173]
[1762838810204,0.501,3565.3,3565.2,3.46889173]
[1762838810622,0.9914,3565.3,3565.2,0.664]
[1762838810825,0.5,3564.8,3564.7,4.47050115]
[1762838811022,0.5,3564.8,3564.7,5.13450115]
[1762838812548,0.9904,3564.8,3564.7,3.46928515]
[1762838812758,0.5,3564.4,3564.3,2.80559997]
[1762838812925,0.5,3564.4,3564.3,3.46959997]
[1762838813947,0.1883,3564.9,3564.8,2.80520646]
[1762838814154,1.1787,3564.9,3564.8,2.80520646]
[1762838814821,1.1787,3564.9,3564.3,3.46959997]
[1762838814822,0.6787,3564.9,3564.3,0.664]
[1762838815028,0.5,3564.5,3564.4,2.80552126]
[1762838815520,0.5,3564.7,3564.6,2.80531672]
[1762838816116,0.9625,3564.7,3564.6,2.80531672]
[1762838816316,0.9625,3564.7,3564.4,2.80552126]
[1762838816513,0.5,3564.6,3564.5,2.80542902]
[1762838817285,0.501,3565.3,3565.1,2.80496647]
[1762838817432,0.4593,3565.2,3564.8,0.665]
[1762838817767,0.5,3564.9,3564.8,0.665]
[1762838817966,0.5,3564.3,3564.1,1.665216]
[1762838818133,0.5,3564.3,3564.2,3.87618269]
[1762838818558,0.5,3564.3,3564.2,4.37618269]
[1762838819669,0.001,3565.3,3565.1,2.80492489]
[1762838819968,0.5,3564.7,3564.6,3.47036385]
[1762838820588,0.5,3564.7,3564.6,4.37586785]
[1762838820739,0.501,3565.3,3565.2,2.80489173]
[1762838821051,0.501,3565.3,3565.2,3.30489173]
[1762838821453,0.001,3565.3,3565.2,3.30489173]
[1762838821853,0.9738,3565.3,3565.2,2.80489173]
[1762838822056,0.501,3565.3,3565.2,3.30489173]
[1762838822369,0.001,3565.3,3565.2,5.46340773]
[1762838824246,0.001,3565.3,3565.2,4.97010773]
[1762838824745,0.001,3565.3,3565.2,3.21039573]
[1762838824942,0.501,3565.3,3565.2,3.21039573]
[1762838825371,0.001,3565.3,3565.2,3.71039573]
[1762838826167,0.4738,3565.3,3565.2,2.80489173]
[1762838826490,1.4331,3565.3,3565.2,3.46889173]
[1762838826643,0.9738,3565.3,3565.2,3.46889173]
[1762838826845,0.501,3565.3,3565.2,3.46889173]
[1762838830672,1.4331,3565.3,3565.2,3.46889173]
[1762838830877,0.5,3565.0,3564.9,0.002]
[1762838831051,0.5,3565.0,3564.9,3.47012777]
[1762838831249,0.001,3565.3,3565.2,2.80489173]
[1762838831250,0.501,3565.3,3565.2,2.80489173]
[1762838831547,0.501,3565.3,3565.2,3.46789173]
[1762838831747,0.9738,3565.3,3565.2,3.46789173]
[1762838832790,0.501,3565.3,3565.2,3.46789173]
[1762838833298,0.501,3565.3,3565.2,3.96789173]
[1762838834002,0.501,3565.3,3565.2,3.46789173]
[1762838834353,0.501,3565.3,3565.2,4.37339573]
[1762838834552,0.001,3565.3,3565.2,4.37339573]
[1762838836494,0.001,3565.3,3565.2,4.86669573]
[1762838836850,0.001,3565.3,3565.2,6.12640773]
[1762838838359,0.001,3565.3,3565.2,5.13310773]
[1762838838703,0.001,3565.3,3565.2,6.12640773]
[1762838840357,0.001,3565.3,3565.2,6.12540773]
[1762838841249,0.001,3566.1,3566.0,3.20976647]
[1762838841457,0.001,3566.1,3566.0,9.1922332]
[1762838841675,0.001,3566.1,3566.0,9.65749058]
[1762838843803,0.001,3566.5,3566.4,2.80394795]
[1762838844004,0.001,3567.7,3567.6,2.80300482]
[1762838844307,0.001,3567.7,3567.6,7.90322093]
[1762838844515,0.001,3567.7,3567.6,9.16293293]
[1762838845286,0.001,3567.7,3567.6,9.63333293]
[1762838846409,0.001,3567.7,3567.6,3.87050882]
[1762838846410,0.4853,3567.7,3567.6,3.87050882]
[1762838846711,0.001,3567.7,3567.6,4.33590882]
[1762838846907,0.001,3567.7,3567.6,3.20850882]
[1762838847109,0.4853,3567.7,3567.6,3.46500482]
[1762838847350,0.001,3567.7,3567.6,7.86862093]
[1762838847475,0.001,3567.7,3567.6,9.59873293]
[1762838849513,0.001,3567.7,3567.6,9.12833293]
[1762838850914,0.001,3567.7,3567.6,8.66193293]
[1762838851219,0.9831,3567.7,3567.6,4.72371682]
[1762838851711,1.4831,3567.7,3567.6,3.46400482]
[1762838852079,1.4831,3567.7,3567.6,0.661]
[1762838852686,1.4831,3567.7,3566.8,0.1867]
[1762838852687,0.5,3567.2,3567.1,2.80339771]
[1762838852882,0.9831,3567.7,3567.1,3.86990171]
[1762838852883,0.6836,3567.6,3567.1,3.86990171]
[1762838853088,0.6836,3567.6,3567.5,2.80308339]
[1762838853089,0.9978,3567.6,3567.5,2.80308339]
[1762838853500,1.4821,3567.6,3567.5,2.80308339]
[1762838853980,1.4821,3567.6,3567.1,1.066504]
[1762838853981,0.5,3567.5,3567.1,1.066504]
[1762838854180,0.9947,3567.5,3567.3,2.80324054]
[1762838854418,0.5,3567.5,3567.4,6.99681294]
[1762838854585,1.4821,3567.5,3567.4,3.46416196]
[1762838856106,1.4821,3567.5,3566.5,3.53271211]
[1762838856318,0.5,3567.2,3567.1,2.80339771]
[1762838856517,0.1858,3567.3,3567.2,2.80331912]
[1762838856730,0.5,3567.3,3567.2,2.80331912]
[1762838856949,0.501,3567.7,3567.6,2.80300482]
[1762838857447,0.9853,3567.7,3567.6,2.80300482]
[1762838857821,1.4831,3567.7,3567.6,2.80300482]
[1762838858713,1.4831,3567.7,3567.1,0.661]
[1762838858714,0.9831,3567.7,3567.1,0.661]
[1762838858913,0.9843,3567.2,3567.1,0.661]
[1762838859119,0.9843,3567.2,3567.1,3.46439771]
[1762838859327,1.4821,3567.2,3567.1,3.46439771]
[1762838860534,0.5,3567.2,3567.1,3.46439771]
[1762838860718,0.501,3567.7,3567.6,2.80300482]
[1762838860928,0.4843,3567.2,3567.1,0.661]
[1762838861128,0.4843,3567.2,3567.1,2.80339771]
[1762838861504,0.4843,3567.2,3567.0,3.53271211]
[1762838861720,0.5,3566.1,3565.4,3.53271211]
[1762838862012,0.5,3566.1,3566.0,2.80426247]
[1762838862544,1.4821,3566.1,3566.0,2.80426247]
[1762838868050,0.9821,3566.1,3566.0,0.02804262]
[1762838868352,1.4821,3566.1,3566.0,2.80426247]
[1762838869721,1.4821,3566.1,3565.6,3.72354794]
[1762838869722,0.9821,3566.1,3565.6,2.80450773]
[1762838869945,1.1651,3565.7,3565.6,2.80450773]
[1762838870160,0.6651,3565.7,3564.9,0.002]
[1762838870458,0.5,3565.3,3565.2,2.80489173]
[1762838870818,0.9843,3565.3,3565.2,2.80489173]
[1762838872959,1.4821,3565.3,3565.2,2.80489173]
[1762838873663,0.9843,3565.3,3565.2,2.80489173]
[1762838874971,1.4821,3565.3,3565.2,2.80489173]
[1762838875524,0.9843,3565.3,3565.2,2.80489173]
[1762838876346,1.4376,3565.3,3565.2,2.80489173]
[1762838876721,0.5,3565.2,3565.1,2.8149704]
[1762838876928,1.2211,3565.2,3565.1,2.8149704]
[1762838878062,0.7678,3565.2,3565.1,2.8149704]
[1762838878250,0.5,3565.2,3565.1,7.02291834]
[1762838878455,0.6808,3565.7,3565.6,2.80457706]
[1762838878858,1.6305,3565.7,3565.6,2.80457706]
[1762838879164,0.9964,3565.7,3565.6,2.80457706]
[1762838879535,1.4497,3565.7,3565.6,2.80457706]
[1762838880088,1.4497,3565.7,3565.1,3.73354794]
[1762838880254,0.5,3565.4,3565.3,2.80481305]
[1762838881175,0.9964,3565.4,3565.3,3.46581305]
[1762838881731,0.5,3565.2,3565.1,0.012]
[1762838881941,0.9964,3565.2,3565.1,0.012]
[1762838882140,1.4497,3565.2,3565.1,0.012]
[1762838882358,1.4497,3565.2,3565.1,2.8169704]
[1762838882653,1.4497,3565.2,3565.1,0.012]
[1762838882852,1.4497,3565.2,3565.1,2.8169704]
[1762838883260,0.5,3565.2,3565.1,2.8169704]
[1762838883454,0.9964,3565.2,3565.1,2.8169704]
[1762838883654,1.4497,3565.2,3565.1,0.012]
[1762838885053,4.25459173,3565.2,3565.1,0.012]
[1762838885453,1.4497,3565.2,3565.1,0.012]
[1762838887061,2.1107,3565.2,3565.1,0.012]
[1762838891692,0.9964,3565.2,3565.1,0.012]
[1762838891866,1.4497,3565.2,3565.1,0.012]
[1762838893177,4.25459173,3565.2,3565.1,0.012]
[1762838894460,5.51430373,3565.2,3565.1,0.012]
[1762838894915,2.80504908,3565.0,3564.9,0.002]
[1762838895193,3.55774908,3565.0,3564.9,0.002]
[1762838895356,4.67204908,3565.0,3564.9,0.002]
[1762838897093,1.259712,3564.7,3564.6,0.002]
[1762838897315,1.259712,3564.7,3564.5,0.002]
[1762838897316,0.5,3564.6,3564.5,0.002]
[1762838897589,5.50997585,3564.6,3564.5,0.002]
[1762838899480,2.1059,3564.6,3564.5,0.002]
[1762838899998,0.5,3564.6,3564.5,0.4864]
[1762838900202,0.5,3564.6,3564.5,3.29184255]
[1762838901663,1.6574,3564.6,3564.5,0.002]
[1762838901811,4.91606385,3564.6,3564.5,0.002]
[1762838901998,4.06531197,3564.3,3564.2,0.002]
[1762838902195,5.47701197,3564.3,3564.2,0.002]
[1762838902450,5.93031197,3564.3,3564.2,0.002]
[1762838904198,2.671412,3564.3,3564.2,0.002]
[1762838904398,5.47701197,3564.3,3564.2,0.002]
[1762838904600,2.671412,3564.3,3564.2,0.002]
[1762838905137,3.124712,3564.3,3564.2,0.002]
[1762838905823,5.93031197,3564.3,3564.2,0.002]
[1762838906137,3.124712,3564.3,3564.2,0.002]
[1762838906438,5.47701197,3564.3,3564.2,0.002]
[1762838906795,5.94361197,3564.3,3564.2,0.002]
[1762838914311,2.477012,3564.3,3564.2,0.002]
[1762838914524,0.5,3564.3,3564.2,0.4774]
[1762838914726,0.5,3564.3,3564.2,3.75367869]
[1762838914925,1.161,3564.3,3564.2,0.002]
[1762838915134,1.161,3564.3,3564.2,0.4774]
[1762838917038,1.161,3564.3,3564.2,0.002]
[1762838918174,1.161,3564.3,3564.2,0.4774]
[1762838919047,0.5,3564.3,3564.2,0.948]
[1762838919571,0.5,3564.3,3564.2,3.28307869]
[1762838919767,0.5,3564.3,3564.2,3.75367869]
[1762838920280,0.662,3564.6,3564.5,2.80544255]
[1762838920448,1.162,3564.6,3564.5,0.4754]
[1762838920647,1.162,3564.6,3564.5,0.946]
[1762838921030,1.162,3564.6,3564.5,3.75144255]
[1762838923078,0.501,3564.6,3564.5,3.75144255]
[1762838924187,0.501,3564.6,3564.5,0.4754]
[1762838924745,0.501,3564.6,3564.5,3.28084255]
[1762838925147,0.501,3564.6,3564.5,3.75144255]
[1762838925448,0.501,3564.6,3564.5,5.01115455]
[1762838925646,0.501,3564.6,3564.5,8.73470249]
[1762838926258,0.501,3564.6,3564.5,4.41244255]
[1762838930090,0.501,3564.6,3564.5,3.75144255]
[1762838930293,0.501,3564.6,3564.5,4.41244255]